fUSD/lending_fUSD_20250618
["ID","MTS","AMOUNT","RATE_DAILY","PERIOD"]
[366406508,1750234265161,-558.0,0.00016744,2]
[366406509,1750234265171,-2003.0,0.00016744,2]
[366406510,1750234265181,-1277.0,0.00016744,2]
[366406511,1750234265191,-590.0,0.00016744,2]
[366406512,1750234265200,-953.82,0.00016744,2]
[366406513,1750234265210,-1674.0,0.00016744,2]
[366406514,1750234265221,-855.0,0.00016744,2]
[366406515,1750234265230,-4092.0,0.00016744,2]
[366406516,1750234265240,-7135.95,0.00016744,2]
[366406517,1750234265250,-205.711,0.00016744,2]
[366406518,1750234265259,-189.0,0.0001676,2]
[366406519,1750234265269,-150.0,0.0001676,2]
[366406520,1750234265279,-8343.62,0.00016766,2]
[366406521,1750234265288,-500.0,0.00016766,2]
[366406522,1750234265298,-455.14447707,0.00016766,2]
[366406523,1750234265307,-2203.92,0.00016766,2]
[366406524,1750234265316,-2203.92,0.00016766,2]
[366406525,1750234265326,-2203.92,0.00016766,2]
[366406526,1750234265339,-2203.92,0.00016766,2]
[366406527,1750234265348,-500.0,0.00016766,2]
[366406528,1750234265358,-202.51168529,0.00016766,2]
[366406529,1750234265368,-4123.36,0.00016766,2]
[366406530,1750234265378,-4123.36,0.00016766,2]
[366406531,1750234265388,-4123.36,0.00016766,2]
[366406532,1750234265398,-4123.36,0.00016766,2]
[366406533,1750234265408,-300.0,0.00016766,2]
[366406534,1750234265418,-300.0,0.00016766,2]
[366406535,1750234265427,-300.0,0.00016766,2]
[366406536,1750234265438,-300.0,0.00016766,2]
[366406537,1750234265447,-407.72756873,0.00016767,2]
[366406538,1750234265457,-490.0,0.00016767,2]
[366406539,1750234265467,-249.136401,0.00016767,2]
[366406540,1750234265477,-490.0,0.00016767,2]
[366406541,1750234265486,-2567.760265,0.00016767,2]
[366406542,1750234265496,-490.0,0.00016767,2]
[366406543,1750234265506,-151.0,0.00016767,2]
[366406544,1750234265515,-151.0,0.00016767,2]
[366406545,1750234265525,-151.0,0.00016767,2]
[366406546,1750234265535,-151.0,0.00016767,2]
[366406547,1750234265545,-490.0,0.00016767,2]
[366406548,1750234265555,-490.0,0.00016767,2]
[366406549,1750234265565,-490.0,0.00016767,2]
[366406550,1750234265575,-490.0,0.00016767,2]
[366406551,1750234265588,-583.85,0.00016767,2]
[366406552,1750234265598,-490.0,0.00016767,2]
[366406553,1750234265607,-490.0,0.00016767,2]
[366406554,1750234265617,-761.39,0.00016767,2]
[366406555,1750234265626,-151.0,0.00016767,2]
[366406556,1750234265636,-151.0,0.00016767,2]
[366406557,1750234265646,-875.74,0.00016767,2]
[366406558,1750234265655,-1280.16,0.00016767,2]
[366406559,1750234265665,-151.0,0.00016767,2]
[366406560,1750234265674,-151.0,0.00016767,2]
[366406561,1750234265684,-490.0,0.00016767,2]
[366406562,1750234265694,-490.0,0.00016767,2]
[366406563,1750234265705,-151.0,0.00016767,2]
[366406564,1750234265715,-151.0,0.00016767,2]
[366406565,1750234265725,-151.0,0.00016767,2]
[366406566,1750234265734,-152.831097,0.00016767,2]
[366406567,1750234265744,-490.0,0.00016767,2]
[366406568,1750234265754,-490.0,0.00016767,2]
[366406569,1750234265764,-201.31721911,0.00016767,2]
[366406570,1750234265774,-1063.25,0.00016767,2]
[366406571,1750234265784,-490.0,0.00016767,2]
[366406572,1750234265794,-490.0,0.00016767,2]
[366406573,1750234265804,-898.99,0.00016767,2]
[366406574,1750234265813,-490.0,0.00016767,2]
[366406575,1750234265824,-490.0,0.00016767,2]
[366406576,1750234265835,-150.617492,0.00016767,2]
[366406577,1750234265845,-490.0,0.00016767,2]
[366406578,1750234265854,-199.98722548,0.00016767,2]
[366406579,1750234265864,-490.0,0.00016767,2]
[366406580,1750234265874,-490.0,0.00016767,2]
[366406581,1750234265884,-583.97,0.00016767,2]
[366406582,1750234265894,-490.0,0.00016767,2]
[366406583,1750234265904,-1305.54,0.00016767,2]
[366406584,1750234265914,-781.49,0.00016767,2]
[366406585,1750234265923,-490.0,0.00016767,2]
[366406586,1750234265933,-490.0,0.00016767,2]
[366406587,1750234265943,-782.65,0.00016767,2]
[366406588,1750234265953,-561.73,0.00016767,2]
[366406589,1750234265963,-490.0,0.00016767,2]
[366406590,1750234265973,-671.46,0.00016767,2]
[366406591,1750234265983,-490.0,0.00016767,2]
[366406592,1750234265993,-490.0,0.00016767,2]
[366406593,1750234266002,-290.72905091,0.00016767,2]
[366406594,1750234266012,-1400.31,0.00016767,2]
[366406595,1750234266022,-588.29,0.00016767,2]
[366406596,1750234266032,-490.0,0.00016767,2]
[366406597,1750234266042,-1063.26,0.00016767,2]
[366406598,1750234266051,-675.62,0.00016767,2]
[366406599,1750234266061,-490.0,0.00016767,2]
[366406600,1750234266072,-705.74,0.00016767,2]
[366406601,1750234266081,-490.0,0.00016767,2]
[366406602,1750234266095,-490.0,0.00016767,2]
[366406603,1750234266105,-490.0,0.00016767,2]
[366406604,1750234266115,-1561.0,0.00016767,2]
[366406605,1750234266126,-490.0,0.00016767,2]
[366406606,1750234266136,-490.0,0.00016767,2]
[366406607,1750234266146,-490.0,0.00016767,2]
[366406608,1750234266155,-490.0,0.00016767,2]
[366406609,1750234266165,-490.0,0.00016767,2]
[366406610,1750234266175,-490.0,0.00016767,2]
[366406611,1750234266186,-490.0,0.00016767,2]
[366406612,1750234266196,-495.84,0.00016767,2]
[366406613,1750234266206,-610.71,0.00016767,2]
[366406614,1750234266216,-697.12,0.00016767,2]
[366406615,1750234266225,-490.0,0.00016767,2]
[366406616,1750234266235,-490.0,0.00016767,2]
[366406617,1750234266245,-490.0,0.00016767,2]
[366406618,1750234266256,-490.0,0.00016767,2]
[366406619,1750234266266,-474.65469258,0.00016767,2]
[366406620,1750234266280,-490.0,0.00016767,2]
[366406621,1750234266290,-490.0,0.00016767,2]
[366406622,1750234266299,-490.0,0.00016767,2]
[366406623,1750234266308,-490.0,0.00016767,2]
[366406624,1750234266319,-490.0,0.00016767,2]
[366406625,1750234266329,-272.70687293,0.00016767,2]
[366406626,1750234266341,-466.208577,0.00016767,2]
[366406627,1750234266351,-490.0,0.00016767,2]
[366406628,1750234266361,-490.0,0.00016767,2]
[366406629,1750234266371,-543.24,0.00016767,2]
[366406630,1750234266381,-490.0,0.00016767,2]
[366406631,1750234266391,-490.0,0.00016767,2]
[366406632,1750234266401,-490.0,0.00016767,2]
[366406633,1750234266410,-490.0,0.00016767,2]
[366406634,1750234266420,-490.0,0.00016767,2]
[366406635,1750234266430,-490.0,0.00016767,2]
[366406636,1750234266440,-490.0,0.00016767,2]
[366406637,1750234266451,-490.0,0.00016767,2]
[366406638,1750234266461,-490.0,0.00016767,2]
[366406639,1750234266471,-772.05,0.00016767,2]
[366406640,1750234266481,-260.51643508,0.00016767,2]
[366406641,1750234266493,-490.0,0.00016767,2]
[366406642,1750234266503,-509.15,0.00016767,2]
[366406643,1750234266512,-490.0,0.00016767,2]
[366406644,1750234266522,-490.0,0.00016767,2]
[366406645,1750234266533,-490.0,0.00016767,2]
[366406646,1750234266543,-490.0,0.00016767,2]
[366406647,1750234266553,-1645.86,0.00016767,2]
[366406648,1750234266563,-611.55,0.00016767,2]
[366406649,1750234266573,-1207.78,0.00016767,2]
[366406650,1750234266582,-490.0,0.00016767,2]
[366406651,1750234266595,-1366.7,0.00016767,2]
[366406652,1750234266604,-560.56,0.00016767,2]
[366406653,1750234266614,-490.0,0.00016767,2]
[366406654,1750234266624,-490.0,0.00016767,2]
[366406655,1750234266633,-490.0,0.00016767,2]
[366406656,1750234266642,-490.0,0.00016767,2]
[366406657,1750234266652,-490.0,0.00016767,2]
[366406658,1750234266662,-490.0,0.00016767,2]
[366406659,1750234266671,-651.31,0.00016767,2]
[366406660,1750234266681,-444.99662829,0.00016767,2]
[366406661,1750234266691,-490.0,0.00016767,2]
[366406662,1750234266701,-770.59,0.00016767,2]
[366406663,1750234266711,-490.0,0.00016767,2]
[366406664,1750234266723,-751.86,0.00016767,2]
[366406665,1750234266733,-1225.33,0.00016767,2]
[366406666,1750234266743,-490.0,0.00016767,2]
[366406667,1750234266752,-490.0,0.00016767,2]
[366406668,1750234266762,-490.0,0.00016767,2]
[366406669,1750234266772,-833.95,0.00016767,2]
[366406670,1750234266782,-490.0,0.00016767,2]
[366406671,1750234266792,-490.0,0.00016767,2]
[366406672,1750234266802,-891.22,0.00016767,2]
[366406673,1750234266811,-1396.11,0.00016767,2]
[366406674,1750234266821,-490.0,0.00016767,2]
[366406675,1750234266830,-737.85,0.00016767,2]
[366406676,1750234266842,-490.0,0.00016767,2]
[366406677,1750234266851,-1229.34,0.00016767,2]
[366406678,1750234266861,-625.83,0.00016767,2]
[366406679,1750234266871,-490.0,0.00016767,2]
[366406680,1750234266880,-490.0,0.00016767,2]
[366406681,1750234266890,-887.572348,0.00016767,2]
[366406682,1750234266900,-690.34,0.00016767,2]
[366406683,1750234266910,-490.0,0.00016767,2]
[366406684,1750234266919,-490.0,0.00016767,2]
[366406685,1750234266929,-557.48,0.00016767,2]
[366406686,1750234266939,-1214.92,0.00016767,2]
[366406687,1750234266948,-981.63,0.00016767,2]
[366406688,1750234266958,-490.0,0.00016767,2]
[366406689,1750234266968,-490.0,0.00016767,2]
[366406690,1750234266978,-858.97,0.00016767,2]
[366406691,1750234266989,-1058.51,0.00016767,2]
[366406692,1750234266999,-250.0,0.00016767,2]
[366406693,1750234267009,-437.19125681,0.00016767,2]
[366406694,1750234267018,-490.0,0.00016767,2]
[366406695,1750234267028,-926.94,0.00016767,2]
[366406696,1750234267041,-490.0,0.00016767,2]
[366406697,1750234267059,-490.0,0.00016767,2]
[366406698,1750234267074,-1317.85,0.00016767,2]
[366406699,1750234267087,-628.43,0.00016767,2]
[366406700,1750234267102,-700.5,0.00016767,2]
[366406701,1750234267116,-568.89,0.00016767,2]
[366406702,1750234267132,-490.0,0.00016767,2]
[366406703,1750234267146,-518.87,0.00016767,2]
[366406704,1750234267160,-490.0,0.00016767,2]
[366406705,1750234267171,-695.67,0.00016767,2]
[366406706,1750234267185,-490.0,0.00016767,2]
[366406707,1750234267200,-275.08436073,0.00016767,2]
[366406708,1750234267214,-637.24,0.00016767,2]
[366406709,1750234267228,-744.52,0.00016767,2]
[366406710,1750234267243,-490.0,0.00016767,2]
[366406711,1750234267258,-1061.43,0.00016767,2]
[366406712,1750234267274,-490.0,0.00016767,2]
[366406713,1750234267289,-490.0,0.00016767,2]
[366406714,1750234267304,-490.0,0.00016767,2]
[366406715,1750234267318,-651.86,0.00016767,2]
[366406716,1750234267333,-490.0,0.00016767,2]
[366406717,1750234267350,-490.0,0.00016767,2]
[366406718,1750234267364,-490.0,0.00016767,2]
[366406719,1750234267377,-1420.47,0.00016767,2]
[366406720,1750234267390,-490.0,0.00016767,2]
[366406721,1750234267401,-490.0,0.00016767,2]
[366406722,1750234267414,-823.21,0.00016767,2]
[366406723,1750234267432,-883.88,0.00016767,2]
[366406724,1750234267443,-1780.9,0.00016767,2]
[366406725,1750234267455,-1014.12,0.00016767,2]
[366406726,1750234267467,-674.15,0.00016767,2]
[366406727,1750234267482,-490.0,0.00016767,2]
[366406728,1750234267495,-1494.81,0.00016767,2]
[366406729,1750234267506,-490.0,0.00016767,2]
[366406730,1750234267517,-646.64,0.00016767,2]
[366406731,1750234267531,-490.0,0.00016767,2]
[366406732,1750234267543,-490.0,0.00016767,2]
[366406733,1750234267557,-775.89,0.00016767,2]
[366406734,1750234267568,-490.0,0.00016767,2]
[366406735,1750234267581,-490.0,0.00016767,2]
[366406736,1750234267595,-490.0,0.00016767,2]
[366406737,1750234267609,-649.84,0.00016767,2]
[366406738,1750234267621,-490.0,0.00016767,2]
[366406739,1750234267634,-239.7,0.00016767,2]
[366406740,1750234267647,-555.27,0.00016767,2]
[366406741,1750234267660,-886.28,0.00016767,2]
[366406742,1750234267673,-1559.25,0.00016767,2]
[366406743,1750234267686,-490.0,0.00016767,2]
[366406744,1750234267698,-490.0,0.00016767,2]
[366406745,1750234267711,-490.0,0.00016767,2]
[366406746,1750234267724,-490.0,0.00016767,2]
[366406747,1750234267736,-151.0,0.00016767,2]
[366406748,1750234267749,-151.0,0.00016767,2]
[366406749,1750234267761,-214.614484,0.00016767,2]
[366406750,1750234267773,-496.83,0.00016767,2]
[366406751,1750234267785,-543.96,0.00016767,2]
[366406752,1750234267798,-1222.79,0.00016767,2]
[366406753,1750234267810,-180.59065864,0.00016767,2]
[366406754,1750234267823,-490.0,0.00016767,2]
[366406755,1750234267836,-1392.99,0.00016767,2]
[366406756,1750234267849,-1462.56,0.00016767,2]
[366406757,1750234267861,-490.0,0.00016767,2]
[366406758,1750234267874,-743.12,0.00016767,2]
[366406759,1750234267887,-267.248277,0.00016767,2]
[366406760,1750234267899,-490.0,0.00016767,2]
[366406761,1750234267912,-490.0,0.00016767,2]
[366406762,1750234267924,-490.0,0.00016767,2]
[366406763,1750234267939,-490.0,0.00016767,2]
[366406764,1750234267952,-490.0,0.00016767,2]
[366406765,1750234267964,-993.77,0.00016767,2]
[366406766,1750234267976,-771.96,0.00016767,2]
[366406767,1750234267988,-300.0,0.00016767,2]
[366406768,1750234268000,-711.7,0.00016767,2]
[366406769,1750234268012,-1025.64,0.00016767,2]
[366406770,1750234268025,-490.0,0.00016767,2]
[366406771,1750234268037,-617.7,0.00016767,2]
[366406772,1750234268048,-1472.8,0.00016767,2]
[366406773,1750234268060,-397.95112098,0.00016767,2]
[366406774,1750234268072,-633.28,0.00016767,2]
[366406775,1750234268085,-855.01,0.00016767,2]
[366406776,1750234268097,-490.0,0.00016767,2]
[366406777,1750234268109,-989.87,0.00016767,2]
[366406778,1750234268120,-1157.2,0.00016767,2]
[366406779,1750234268133,-538.41,0.00016767,2]
[366406780,1750234268145,-850.49,0.00016767,2]
[366406781,1750234268156,-587.59,0.00016767,2]
[366406782,1750234268170,-2088.36,0.00016767,2]
[366406783,1750234268182,-490.0,0.00016767,2]
[366406784,1750234268195,-490.0,0.00016767,2]
[366406785,1750234268207,-896.82,0.00016767,2]
[366406786,1750234268220,-1288.11,0.00016767,2]
[366406787,1750234268232,-490.0,0.00016767,2]
[366406788,1750234268244,-490.0,0.00016767,2]
[366406789,1750234268256,-490.0,0.00016767,2]
[366406790,1750234268268,-655.01,0.00016767,2]
[366406791,1750234268284,-1423.46,0.00016767,2]
[366406792,1750234268295,-1357.87,0.00016767,2]
[366406793,1750234268307,-490.0,0.00016767,2]
[366406794,1750234268319,-490.0,0.00016767,2]
[366406795,1750234268331,-490.0,0.00016767,2]
[366406796,1750234268345,-490.0,0.00016767,2]
[366406797,1750234268357,-490.0,0.00016767,2]
[366406798,1750234268370,-1451.71,0.00016767,2]
[366406799,1750234268381,-860.42,0.00016767,2]
[366406800,1750234268400,-498.01,0.00016767,2]
[366406801,1750234268412,-490.0,0.00016767,2]
[366406802,1750234268424,-490.0,0.00016767,2]
[366406803,1750234268437,-490.0,0.00016767,2]
[366406804,1750234268449,-490.0,0.00016767,2]
[366406805,1750234268462,-758.8,0.00016767,2]
[366406806,1750234268474,-1106.44,0.00016767,2]
[366406807,1750234268486,-490.0,0.00016767,2]
[366406808,1750234268498,-832.1,0.00016767,2]
[366406809,1750234268510,-771.47,0.00016767,2]
[366406810,1750234268522,-201.89493759,0.00016767,2]
[366406811,1750234268534,-490.0,0.00016767,2]
[366406812,1750234268546,-2282.39,0.00016767,2]
[366406813,1750234268559,-679.42,0.00016767,2]
[366406814,1750234268571,-490.0,0.00016767,2]
[366406815,1750234268583,-490.0,0.00016767,2]
[366406816,1750234268595,-490.0,0.00016767,2]
[366406817,1750234268608,-490.0,0.00016767,2]
[366406818,1750234268620,-1760.48,0.00016767,2]
[366406819,1750234268632,-490.0,0.00016767,2]
[366406820,1750234268644,-906.73,0.00016767,2]
[366406821,1750234268656,-490.0,0.00016767,2]
[366406822,1750234268668,-759.2,0.00016767,2]
[366406823,1750234268680,-490.0,0.00016767,2]
[366406824,1750234268692,-490.0,0.00016767,2]
[366406825,1750234268704,-490.0,0.00016767,2]
[366406826,1750234268717,-490.0,0.00016767,2]
[366406827,1750234268729,-517.05,0.00016767,2]
[366406828,1750234268741,-490.0,0.00016767,2]
[366406829,1750234268753,-490.0,0.00016767,2]
[366406830,1750234268765,-490.0,0.00016767,2]
[366406831,1750234268777,-819.78,0.00016767,2]
[366406832,1750234268789,-490.0,0.00016767,2]
[366406833,1750234268803,-490.0,0.00016767,2]
[366406834,1750234268815,-522.72,0.00016767,2]
[366406835,1750234268828,-1368.42,0.00016767,2]
[366406836,1750234268841,-654.66,0.00016767,2]
[366406837,1750234268854,-532.75,0.00016767,2]
[366406838,1750234268867,-490.0,0.00016767,2]
[366406839,1750234268879,-490.0,0.00016767,2]
[366406840,1750234268891,-490.0,0.00016767,2]
[366406841,1750234268903,-490.0,0.00016767,2]
[366406842,1750234268916,-923.72,0.00016767,2]
[366406843,1750234268928,-490.0,0.00016767,2]
[366406844,1750234268941,-246.39266234,0.00016767,2]
[366406845,1750234268953,-490.0,0.00016767,2]
[366406846,1750234268966,-490.0,0.00016767,2]
[366406847,1750234268978,-766.29,0.00016767,2]
[366406848,1750234268991,-1134.71,0.00016767,2]
[366406849,1750234269003,-607.17,0.00016767,2]
[366406850,1750234269016,-1156.33,0.00016767,2]
[366406851,1750234269028,-3027.41,0.00016767,2]
[366406852,1750234269040,-490.0,0.00016767,2]
[366406853,1750234269052,-910.47,0.00016767,2]
[366406854,1750234269064,-993.99,0.00016767,2]
[366406855,1750234269076,-490.0,0.00016767,2]
[366406856,1750234269088,-490.0,0.00016767,2]
[366406857,1750234269100,-490.0,0.00016767,2]
[366406858,1750234269113,-490.0,0.00016767,2]
[366406859,1750234269125,-590.17,0.00016767,2]
[366406860,1750234269137,-490.0,0.00016767,2]
[366406861,1750234269149,-490.0,0.00016767,2]
[366406862,1750234269161,-490.0,0.00016767,2]
[366406863,1750234269172,-490.0,0.00016767,2]
[366406864,1750234269184,-810.5,0.00016767,2]
[366406865,1750234269196,-490.0,0.00016767,2]
[366406866,1750234269208,-490.0,0.00016767,2]
[366406867,1750234269220,-1547.38,0.00016767,2]
[366406868,1750234269232,-490.0,0.00016767,2]
[366406869,1750234269244,-910.84,0.00016767,2]
[366406870,1750234269255,-490.0,0.00016767,2]
[366406871,1750234269267,-594.64,0.00016767,2]
[366406872,1750234269283,-490.0,0.00016767,2]
[366406873,1750234269296,-614.62,0.00016767,2]
[366406874,1750234269308,-490.0,0.00016767,2]
[366406875,1750234269320,-2189.3,0.00016767,2]
[366406876,1750234269332,-490.0,0.00016767,2]
[366406877,1750234269345,-504.42,0.00016767,2]
[366406878,1750234269358,-601.49,0.00016767,2]
[366406879,1750234269370,-490.0,0.00016767,2]
[366406880,1750234269382,-818.3,0.00016767,2]
[366406881,1750234269394,-2227.17,0.00016767,2]
[366406882,1750234269407,-490.0,0.00016767,2]
[366406883,1750234269420,-490.0,0.00016767,2]
[366406884,1750234269431,-490.82415984,0.00016767,2]
[366406885,1750234269443,-576.64,0.00016767,2]
[366406886,1750234269455,-490.0,0.00016767,2]
[366406887,1750234269468,-1350.66,0.00016767,2]
[366406888,1750234269480,-490.0,0.00016767,2]
[366406889,1750234269492,-490.0,0.00016767,2]
[366406890,1750234269504,-490.0,0.00016767,2]
[366406891,1750234269516,-1446.22,0.00016767,2]
[366406892,1750234269528,-490.0,0.00016767,2]
[366406893,1750234269540,-2263.13,0.00016767,2]
[366406894,1750234269552,-1573.28,0.00016767,2]
[366406895,1750234269564,-490.0,0.00016767,2]
[366406896,1750234269576,-490.0,0.00016767,2]
[366406897,1750234269589,-785.62,0.00016767,2]
[366406898,1750234269601,-490.0,0.00016767,2]
[366406899,1750234269614,-490.0,0.00016767,2]
[366406900,1750234269626,-490.0,0.00016767,2]
[366406901,1750234269639,-521.02,0.00016767,2]
[366406902,1750234269652,-1023.47,0.00016767,2]
[366406903,1750234269664,-490.0,0.00016767,2]
[366406904,1750234269676,-490.0,0.00016767,2]
[366406905,1750234269687,-1474.71,0.00016767,2]
[366406906,1750234269700,-710.39,0.00016767,2]
[366406907,1750234269712,-490.0,0.00016767,2]
[366406908,1750234269724,-490.0,0.00016767,2]
[366406909,1750234269736,-632.81,0.00016767,2]
[366406910,1750234269749,-490.0,0.00016767,2]
[366406911,1750234269762,-490.0,0.00016767,2]
[366406912,1750234269775,-490.0,0.00016767,2]
[366406913,1750234269787,-761.28,0.00016767,2]
[366406914,1750234269800,-1914.47,0.00016767,2]
[366406915,1750234269812,-490.0,0.00016767,2]
[366406916,1750234269824,-1433.02,0.00016767,2]
[366406917,1750234269837,-2225.24,0.00016767,2]
[366406918,1750234269849,-770.88,0.00016767,2]
[366406919,1750234269862,-490.0,0.00016767,2]
[366406920,1750234269874,-1175.96,0.00016767,2]
[366406921,1750234269887,-490.0,0.00016767,2]
[366406922,1750234269899,-490.0,0.00016767,2]
[366406923,1750234269912,-490.0,0.00016767,2]
[366406924,1750234269925,-490.0,0.00016767,2]
[366406925,1750234269937,-490.0,0.00016767,2]
[366406926,1750234269950,-490.0,0.00016767,2]
[366406927,1750234269962,-490.0,0.00016767,2]
[366406928,1750234269974,-614.8,0.00016767,2]
[366406929,1750234269987,-1968.98,0.00016767,2]
[366406930,1750234270000,-490.0,0.00016767,2]
[366406931,1750234270012,-490.0,0.00016767,2]
[366406932,1750234270024,-1018.92,0.00016767,2]
[366406933,1750234270035,-490.0,0.00016767,2]
[366406934,1750234270047,-1627.4,0.00016767,2]
[366406935,1750234270060,-490.0,0.00016767,2]
[366406936,1750234270072,-490.0,0.00016767,2]
[366406937,1750234270084,-490.0,0.00016767,2]
[366406938,1750234270097,-787.05,0.00016767,2]
[366406939,1750234270109,-490.0,0.00016767,2]
[366406940,1750234270122,-490.0,0.00016767,2]
[366406941,1750234270134,-490.0,0.00016767,2]
[366406942,1750234270146,-587.01,0.00016767,2]
[366406943,1750234270159,-488.27955624,0.00016767,2]
[366406944,1750234270172,-490.0,0.00016767,2]
[366406945,1750234270184,-490.0,0.00016767,2]
[366406946,1750234270196,-688.57,0.00016767,2]
[366406947,1750234270208,-612.6,0.00016767,2]
[366406948,1750234270220,-673.49,0.00016767,2]
[366406949,1750234270231,-490.0,0.00016767,2]
[366406950,1750234270244,-1245.73,0.00016767,2]
[366406951,1750234270255,-567.43,0.00016767,2]
[366406952,1750234270268,-1384.25,0.00016767,2]
[366406953,1750234270283,-151.0,0.00016767,2]
[366406954,1750234270295,-490.0,0.00016767,2]
[366406955,1750234270308,-245.944091,0.00016767,2]
[366406956,1750234270320,-490.0,0.00016767,2]
[366406957,1750234270333,-490.0,0.00016767,2]
[366406958,1750234270344,-713.96,0.00016767,2]
[366406959,1750234270354,-490.0,0.00016767,2]
[366406960,1750234270364,-2580.01,0.00016767,2]
[366406961,1750234270374,-501.23,0.00016767,2]
[366406962,1750234270384,-151.0,0.00016767,2]
[366406963,1750234270394,-151.0,0.00016767,2]
[366406964,1750234270404,-490.0,0.00016767,2]
[366406965,1750234270414,-151.0,0.00016767,2]
[366406966,1750234270923,-2227.74,0.00016767,2]
[366406967,1750234270956,-490.0,0.00016767,2]
[366406968,1750234270969,-490.0,0.00016767,2]
[366406969,1750234270979,-201.622712,0.00016767,2]
[366406970,1750234270989,-1651.88,0.00016767,2]
[366406971,1750234270998,-503.74,0.00016767,2]
[366406972,1750234271008,-201.622712,0.00016767,2]
[366406973,1750234271018,-490.0,0.00016767,2]
[366406974,1750234271028,-201.622712,0.00016767,2]
[366406975,1750234271038,-528.6,0.00016767,2]
[366406976,1750234271048,-490.0,0.00016767,2]
[366406977,1750234271058,-201.622712,0.00016767,2]
[366406978,1750234271067,-490.0,0.00016767,2]
[366406979,1750234271077,-201.622712,0.00016767,2]
[366406980,1750234271086,-201.622708,0.00016767,2]
[366406981,1750234271098,-533.32,0.00016767,2]
[366406982,1750234271107,-1539.13,0.00016767,2]
[366406983,1750234271117,-865.52,0.00016767,2]
[366406984,1750234271127,-583.36,0.00016767,2]
[366406985,1750234271137,-1296.85,0.00016767,2]
[366406986,1750234271147,-490.0,0.00016767,2]
[366406987,1750234271156,-622.91,0.00016767,2]
[366406988,1750234271166,-1000.0,0.00016767,2]
[366406989,1750234271176,-490.0,0.00016767,2]
[366406990,1750234271185,-2516.8,0.00016767,2]
[366406991,1750234271196,-743.38,0.00016767,2]
[366406992,1750234271205,-490.0,0.00016767,2]
[366406993,1750234271215,-490.0,0.00016767,2]
[366406994,1750234271225,-1921.62,0.00016767,2]
[366406995,1750234271235,-490.0,0.00016767,2]
[366406996,1750234271245,-490.0,0.00016767,2]
[366406997,1750234271255,-614.88,0.00016767,2]
[366406998,1750234271264,-490.0,0.00016767,2]
[366406999,1750234271276,-2425.96,0.00016767,2]
[366407000,1750234271287,-490.0,0.00016767,2]
[366407001,1750234271297,-1692.79,0.00016767,2]
[366407002,1750234271306,-490.0,0.00016767,2]
[366407003,1750234271316,-490.0,0.00016767,2]
[366407004,1750234271326,-1748.68,0.00016767,2]
[366407005,1750234271335,-490.0,0.00016767,2]
[366407006,1750234271347,-490.0,0.00016767,2]
[366407007,1750234271356,-2491.22,0.00016767,2]